Cogmind - Beta 15 @@@ ROGUE MODE // 2025.09.01 @ 10:49:26 Player: beans Result: Destroyed by G-34 Mercenary with Small Laser Performance ------------- Evolutions (1) 500 Regions Visited (4) 800 Robots Destroyed (21) 105 Value Destroyed (420) 420 Prototype IDs (1) 20 Alien Tech Used (0) 0 Bonus (0) 0 TOTAL SCORE: 1845 Bonus ------- None Cogmind --------- Core Integrity 0/400 Matter 290/300 Energy 99/100 System Corruption 0% Temperature Cool (8) Movement Flying (37) Location -9/Storage Parts ------- > --- POWER (1) -------- (None) > --- PROPULSION (2) --- Improved Flight Unit Improved Flight Unit > --- UTILITY (4) ------ Salvage Targeting Computer Salvage Targeting Computer Targeting Computer > --- WEAPON (2) ------- (None) > --- INVENTORY (5) ---- Experimental Targeting Computer Drone Bay (2/2) Peak State ------------ > --- POWER ------------ (None) > --- PROPULSION ------- Improved Flight Unit Improved Flight Unit > --- UTILITY ---------- Heat Sink Machine Analyzer Salvage Targeting Computer Salvage Targeting Computer > --- WEAPON ----------- Spread Laser > --- INVENTORY -------- (None) [Rating: 16] Favorites ----------- Power Light Nuclear Core Power Core Light Nuclear Core Propulsion Light Treads Treads Light Treads Flight Unit Improved Flight Unit Utility Salvage Targeting Computer Device Heat Sink Processor Salvage Targeting Computer Weapon Assault Rifle Energy Gun Spread Laser Ballistic Gun Assault Rifle Impact Weapon Mace Build | -11 -10 -10 -9 -9 ------- Run | Yrd Mat Min Mat Sto Slots Evolved 2 | . . . 2 . Power . | . . . . . Propulsion . | . . . . . Utility 2 | . . . 2 . Weapon . | . . . . . Parts Attached 16 | 4 . 1 7 4 Power 1 | . . 1 . . Engine . | . . . . . Core 1 | . . 1 . . Reactor . | . . . . . Propulsion 5 | 2 . . 1 2 Treads 3 | 2 . . 1 . Leg . | . . . . . Wheel . | . . . . . Hover . | . . . . . Flight 2 | . . . . 2 Utility 6 | . . . 4 2 Device 1 | . . . 1 . Storage . | . . . . . Processor 5 | . . . 3 2 Hackware . | . . . . . Protection . | . . . . . Artifact . | . . . . . Weapon 4 | 2 . . 2 . Energy Gun 1 | . . . 1 . Energy Cannon . | . . . . . Ballistic Gun 2 | 2 . . . . Ballistic Cannon . | . . . . . Launcher . | . . . . . Special Weapon . | . . . . . Impact Weapon 1 | . . . 1 . Slashing Weapon . | . . . . . Piercing Weapon . | . . . . . Special Melee Weapon . | . . . . . Unidentified Prototypes 1 | . . . . 1 Parts Lost 5 | . . 3 . 2 Power 1 | . . 1 . . Propulsion . | . . . . . Utility 1 | . . . . 1 Weapon 3 | . . 2 . 1 Highest Loss Streak 2 | . . 2 . 1 To Critical Strikes . | . . . . . Average Backups . | . . 1 . . Power . | . . . . . Propulsion . | . . . . . Utility . | . . 1 . . Weapon . | . . . . . Tool/Special . | . . . . . Unused Backups 3 | . . 2 . 1 Power . | . . . . . Propulsion 2 | . . 2 . . Utility 1 | . . . . 1 Weapon . | . . . . . Tool/Special . | . . . . . Average Slot Usage (%) 52 | . 57 53 30 61 Core 3 | . . 11 . . Treads 19 | . 28 27 4 2 Flight 3 | . . . . 16 Device 1 | . . . 1 8 Processor 8 | . . . 15 28 Energy Gun 2 | . . . 6 5 Ballistic Gun 14 | . 28 14 . . Peak Build Rating 16 | 4 4 6 8 16 Average Rating 5 | 2 4 5 5 11 On Entrance 3 | . 4 4 . 8 Naked Turns 22 | . . 11 11 . Heaviest Build 7 | 4 4 7 4 4 Greatest Support 40 | 40 40 40 20 20 Greatest Overweight (x) . | . . . . . Average Overweight (x) . | . . . . . Largest Inventory Capacity 5 | 5 5 5 5 5 Average Capacity 5 | 5 5 5 5 5 Most Carried 3 | 2 1 3 2 2 Average Carried . | . . 1 . . Final Capacity 5 | 5 5 5 5 5 Final Carried 2 | . 1 1 . 2 Class Distribution -------------------- 100% | Mutant Dominant Class ---------------- Mutant | -10/Materials Mutant | -10/Mines Mutant | -9/Materials Mutant | -9/Storage Resources | -11 -10 -10 -9 -9 ----------- Run | Yrd Mat Min Mat Sto Matter Collected 561 | 209 159 103 69 21 Remotely . | . . . . . Salvage Created 573 | . 285 101 160 27 Parts 38 | . 20 7 8 3 Haulers Intercepted . | . . . . . Recyclers Shooed 2 | . 1 . 1 . Parts Field Recycled . | . . . . . Retrieved Matter . | . . . . . Parts Self-Destructed . | . . . . . Prevented . | . . . . . Kills | -11 -10 -10 -9 -9 ------- Run | Yrd Mat Min Mat Sto Combat Hostiles Destroyed 14 | . 5 2 7 . Melee 1 | . . . 1 . Guns 10 | . 5 2 3 . Classes Destroyed 7 | . 5 . 1 1 Builder 2 | . 2 . . . Recycler 1 | . 1 . . . Mechanic 1 | . . . . 1 Watcher 3 | . 2 . 1 . Swarmer 7 | . 3 . 4 . Grunt 5 | . 2 2 1 . Sentry 2 | . . . 2 . Best Kill Streak 4 | . 4 2 4 1 Combat Bots Only 4 | . 3 2 4 . Max Kills in Single Turn 2 | . 2 1 1 1 Gunslinging 1 | . 1 . . . Exploded . | . . . . . Melee 1 | . . . 1 . Uniques/NPCs Destroyed . | . . . . . Combat | -11 -10 -10 -9 -9 -------- Run | Yrd Mat Min Mat Sto Hostile Shots Fired 174 | . 45 45 63 21 Missed 49 | . 11 13 19 6 Hits 125 | . 34 32 44 15 Projectile 125 | . 34 32 44 15 Damage Taken 1365 | . 345 381 425 214 Core 643 | . 123 114 268 138 Absorbed by Shields . | . . . . . Core Remaining (%) 52 | 100 . 5 . . Volleys Fired 66 | . 28 13 19 6 Largest 2 | . 2 2 1 1 Hottest 65 | . 40 40 65 65 Shots Fired 101 | . 56 20 19 6 Gun 101 | . 56 20 19 6 Cannon . | . . . . . Launcher . | . . . . . Special . | . . . . . Kinetic 76 | . 56 20 . . Thermal 25 | . . . 19 6 Explosive . | . . . . . Electromagnetic . | . . . . . Robot Hit Streak 6 | . 4 5 6 5 Robot Miss Streak 10 | . 2 3 4 10 Penetration Max . | . . . . . Secondary Targets 1 | . 1 . . . Max Gunslinging Chain 1 | . 1 . . . Shots Hit Robots 72 | . 32 11 24 5 Core Hits 47 | . 14 5 22 6 Critical Kills . | . . . . . Critical Parts Destroyed 1 | . . . 1 . Critical Strikes 1 | . . . 1 . Smash 1 | . . . 1 . Melee Attacks 8 | . . . 8 . Impact 8 | . . . 8 . Slashing . | . . . . . Piercing . | . . . . . Sneak Attacks . | . . . . . Combat Hostiles . | . . . . . Follow-up Attacks . | . . . . . Damage Inflicted 1133 | . 466 130 461 76 Guns 904 | . 466 130 232 76 Cannons . | . . . . . Explosions . | . . . . . Melee 229 | . . . 229 . Ramming . | . . . . . Kinetic 596 | . 466 130 . . Thermal 308 | . . . 232 76 Explosive . | . . . . . Electromagnetic . | . . . . . Impact 229 | . . . 229 . Slashing . | . . . . . Piercing . | . . . . . Highest Corruption 3 | . 3 3 . . Average Corruption 2 | . 2 3 . . Corruption Purged . | . . . . . Corruption Blocked . | . . . . . Effects 11 | . 7 4 . . Message Errors 5 | . 3 2 . . Matter Fused 1 | . 1 . . . Heat Flow Errors 1 | . 1 . . . Data Loss (minor) 2 | . 1 1 . . Misfires 1 | . . 1 . . Alerts 1 | . 1 . . . Overload Shots . | . . . . . Overflow Damage 90 | . . . 90 . Projectiles . | . . . . . Explosions . | . . . . . Melee 90 | . . . 90 . Knockbacks 2 | . . . 2 . Impact 2 | . . . 2 . Kinetic . | . . . . . Secondary . | . . . . . Self-Inflicted Damage . | . . . . . Shots . | . . . . . Rammed . | . . . . . Targets Rammed . | . . . . . Kicked . | . . . . . Crushed . | . . . . . Highest Temperature 96 | . 96 6 86 5 Average Temperature 33 | . 54 3 37 3 Received Heat Transfer 453 | . 96 213 63 81 Siege Activations . | . . . . . Martial Activations . | . . . . . Shielding Activations . | . . . . . Robots Disrupted . | . . . . . Combat Hostiles . | . . . . . Robots Corrupted 3 | . . . 3 . Combat Hostiles 3 | . . . 3 . Parts Fried 6 | . . . 6 . Impact Corruptions 5 | . . . 5 . Robots Melted . | . . . . . Combat Hostiles . | . . . . . Parts Melted . | . . . . . Heat Transferred 385 | . . . 290 95 Parts Sabotaged . | . . . . . Parts Stolen . | . . . . . Parts Stripped . | . . . . . Power Chain Reactions . | . . . . . Alert | -11 -10 -10 -9 -9 ------- Run | Yrd Mat Min Mat Sto Maximum Alert Level . | . . . . . Low Security (%) 100 | 100 100 100 100 100 Level 1 . | . . . . . Level 2 . | . . . . . Level 3 . | . . . . . Level 4 . | . . . . . Level 5 . | . . . . . High Security . | . . . . . Max Security . | . . . . . Peak Influence 170 | . 95 40 170 66 Initial 66 | . . 3 . 66 Average 34 | . 37 6 96 34 Influence Increases 493 | . 139 50 217 87 Destroy 0b10 Robot/C 280 | . 100 40 140 . Destroy 0b10 Robot/NC 35 | . 25 . 5 5 Destroy Leader 66 | . 14 10 42 . Successful Hack 7 | . . . . 7 Partial Spotted 15 | . . . . 15 Lose Combat Pursuer 90 | . . . 30 60 Influence Decreases 440 | . 130 59 60 191 Entered New Map 97 | . . 6 . 91 Time Decay 320 | . 130 50 60 80 Lost Part 23 | . . 3 . 20 Squads Dispatched 5 | . 2 . 2 1 Investigation 2 | . 1 . . 1 Extermination . | . . . . . Reinforcement 3 | . 1 . 2 . Assault . | . . . . . Garrison . | . . . . . Intercept . | . . . . . Searches Triggered . | . . . . . Construction Impeded . | . . . . . Haulers Reinforced . | . . . . . Active Scanning Responses . | . . . . . Cargo Convoy Interrupts . | . . . . . Stealth | -11 -10 -10 -9 -9 --------- Run | Yrd Mat Min Mat Sto Distress Signals 5 | . 1 . 2 2 Communications Jammed . | . . . . . Distress Signals . | . . . . . Times Spotted 48 | . 15 6 14 13 Peak Tracking Total 10 | . 8 4 8 10 Tactical Retreats 4 | . . . 2 2 Traps | -11 -10 -10 -9 -9 ------- Run | Yrd Mat Min Mat Sto Traps Triggered 3 | . 3 . . . Indirectly . | . . . . . Trap Hack Attempts . | . . . . . Triggered . | . . . . . Disarmed . | . . . . . Reprogrammed . | . . . . . Reused . | . . . . . Traps Extracted . | . . . . . Installed . | . . . . . Triggered . | . . . . . Machines | -11 -10 -10 -9 -9 ---------- Run | Yrd Mat Min Mat Sto Machines Disabled . | . . . . . Max in Single Turn . | . . . . . Machines Repaired . | . . . . . Machines Dismantled . | . . . . . Machines Sabotaged . | . . . . . Overloaded Fab Kills . | . . . . . Hacking | -11 -10 -10 -9 -9 --------- Run | Yrd Mat Min Mat Sto Machines Accessed 4 | . . . . 4 Terminals 4 | . . . . 4 Fabricators . | . . . . . Repair Stations . | . . . . . Recycling Units . | . . . . . Scanalyzers . | . . . . . Garrison Access . | . . . . . Total Hacks 8 | . . . . 8 Successful 2 | . . . . 2 Failed 6 | . . . . 6 Catastrophic . | . . . . . Database Lockouts . | . . . . . Manual . | . . . . . Terminals 8 | . . . . 8 Fabricators . | . . . . . Repair Stations . | . . . . . Recycling Units . | . . . . . Scanalyzers . | . . . . . Garrison Access . | . . . . . Terminal Hacks 2 | . . . . 2 Open Door 2 | . . . . 2 Fabricator Hacks . | . . . . . Repair Station Hacks . | . . . . . Recycling Unit Hacks . | . . . . . Scanalyzer . | . . . . . Garrison Access Hacks . | . . . . . Unauthorized Hacks . | . . . . . Terminals . | . . . . . Fabricators . | . . . . . Repair Stations . | . . . . . Recycling Units . | . . . . . Scanalyzers . | . . . . . Garrison Access . | . . . . . Data Cores Recovered . | . . . . . Used . | . . . . . Hacking Detections 2 | . . . . 2 Full Trace Events 1 | . . . . 1 Feedback Events . | . . . . . Feedback Blocked . | . . . . . Robot Schematics Acquired . | . . . . . Robots Built . | . . . . . Authchips . | . . . . . Time . | . . . . . Total Robot Build Rating . | . . . . . Part Schematics Acquired . | . . . . . Parts Built . | . . . . . Authchips . | . . . . . Time . | . . . . . Total Part Build Rating . | . . . . . Parts Repaired . | . . . . . Time . | . . . . . Parts Recycled . | . . . . . Recycled Matter . | . . . . . Retrieved Matter . | . . . . . Retrieved Components . | . . . . . Parts Scanalyzed . | . . . . . Part Schematics Acquired . | . . . . . Parts Damaged . | . . . . . Bothacking | -11 -10 -10 -9 -9 ------------ Run | Yrd Mat Min Mat Sto Used RIF Installer . | . . . . . Robots Hacked . | . . . . . Non-combat . | . . . . . Combat . | . . . . . Robot Hacks Applied . | . . . . . Relay Couplers Released . | . . . . . Fabnet Peak Effective % . | . . . . . Robots Rewired . | . . . . . Allies Hacked . | . . . . . Hacks Repelled . | . . . . . Allies | -11 -10 -10 -9 -9 -------- Run | Yrd Mat Min Mat Sto Total Allies . | . . . . . Largest Group . | . . . . . Highest-Rated Group . | . . . . . Highest-Rated Ally . | . . . . . Total Orders . | . . . . . Ally Attacks . | . . . . . Total Damage . | . . . . . Kills . | . . . . . Allies Corrupted . | . . . . . Allies Melted . | . . . . . Intel | -11 -10 -10 -9 -9 ------- Run | Yrd Mat Min Mat Sto Active Infowar (turns) 55 | . . . 50 5 Optics 50 | . . . 50 . Machine Analysis 5 | . . . . 5 Robot Analysis Total . | . . . . . Derelict Logs Recovered . | . . . . . Drone Launches . | . . . . . Drone Recoveries . | . . . . . Exploration | -11 -10 -10 -9 -9 ------------- Run | Yrd Mat Min Mat Sto Turns Passed 1020 | 73 340 280 150 177 Spaces Moved 634 | 51 160 63 95 265 Core 106 | 14 . 21 71 . Treads 289 | 37 160 42 24 26 Legs . | . . . . . Wheels . | . . . . . Hover . | . . . . . Flight 239 | . . . . 239 Fastest Speed 37 | 50 160 50 50 37 Average Speed 95 | 129 160 123 77 49 Slowest Speed 160 | 160 160 160 160 160 Overloaded Moves . | . . . . . Propulsion Burnouts . | . . . . . Robots Hopped 15 | . . . . 15 Potential Cave-ins . | . . . . . Cave-ins Triggered . | . . . . . Exploration Rate (%) 27 | 3 37 14 15 69 Regions Visited 4 Branch Regions 2 Pre-discovered Areas . | . . . . . Known Exits Taken . | . . . . . Unknown Exits Taken 4 | 1 1 1 1 . Scrap Searched . | . . . . . Spaces Dug . | . . . . . Terrain Destroyed . | . . . . . Melee . | . . . . . Projectile . | . . . . . AOE . | . . . . . Terrain Rammed . | . . . . . Walls Destroyed . | . . . . . Machines Disabled . | . . . . . Actions | -11 -10 -10 -9 -9 --------- Run | Yrd Mat Min Mat Sto Total 923 | 58 188 247 139 291 Wait 190 | . . 164 3 23 Move 603 | 50 159 62 94 238 Hop 12 | . . . . 12 Pick Up 20 | 4 1 3 6 6 Fast Attach . | . . . . . Attach 15 | 4 . 1 7 3 Detach . | . . . . . Swap 1 | . . . . 1 Drop 8 | . . 4 2 2 Fire 66 | . 28 13 19 6 Melee 8 | . . . 8 . Ram . | . . . . . Kick . | . . . . . Crush . | . . . . . Escape Stasis . | . . . . . Rewire . | . . . . . Trap . | . . . . . Miscellaneous . | . . . . . Route ------- -11/Scrapyard -10/Materials -10/Mines -9/Materials -9/Storage (discovered 1 exit: [*Mat]) History --------- Turn | Location | Event 3 | -11/Scrapyard | Discovered new exit (range 15) 74 | -11/Scrapyard | Entered Materials 303 | -10/Materials | Build established: Mutant 403 | -10/Materials | Discovered new exit (range 8) 414 | -10/Materials | Entered Mines 419 | -10/Mines | Core integrity fell below 50% 476 | -10/Mines | Excavation squad dispatched 476 | -10/Mines | A large section of the Mines collapsed 685 | -10/Mines | Core integrity fell below 20% 691 | -10/Mines | Discovered new exit (range 6) 694 | -10/Mines | Entered Materials 694 | -9/Materials | Evolved 2 slots: Utility x2 746 | -9/Materials | Core integrity fell below 50% 829 | -9/Materials | Discovered new exit (range 7) 844 | -9/Materials | Entered Storage 941 | -9/Storage | Core integrity fell below 20% 950 | -9/Storage | Found Prototype Processor 985 | -9/Storage | Discovered new exit (range 16) 1021 | -9/Storage | Destroyed by G-34 Mercenary with Small Laser Last Messages --------------- Connecting with Door Terminal... Current location identified: Storage >>Open(Door) Sealed Heavy Doors opened. Acquired Prototype Processor. Connecting with Door Terminal... W-16 Scout sends out distress signal. [Achievement: Cya!] Heat Sink destroyed. EXIT=FOUND K-01 Serf cleans the Storage Shell. Connecting with Door Terminal... ALERT: Suspicious activity at Terminal S005. Dispatching Investigation squad. Connecting with Door Terminal... >>Open(Door) Sealed Heavy Doors opened. Acquired Drone Bay. W-16 Scout sends out distress signal. K-01 Serf collects debris. Map ----- +----------------------------------------------------+ | ?+ #????????# """" #??????????????????? | | ?? #????????# #??????????????????? | | ?? #????????##/#########?????????????????? | | ?? ??????????# #?# #?????????????????? | | ?????????##????# #?# #?????????????????? | | ?????????#""???# #?# #?????????????????? | | ?????????#"Y"??# #?# #?????????????????? | | ??########" "#?# #?# #?????????????????? | | ??? # #?# #?????????????????? | | ???? # ### #?????????????????? | | ????????"" """ + ## #?????????????????? | | ????????"" """ # + #?????????????????? | | ????????"" """ # ## #?????????????????? | | ???????? ?#k ## #?????????????????? | | ????????######## ## #?????????????????? | | ??????????????# ##+#######??????????????? | | ??????????????+ + "??????????????? | | ????????????? # #T#??????????????? | | ???????????? !# g "" ###??????????????? | | ??????????? ?# wY"g #????????????????? | | ??????????? ??# ^ k"" ##???##########??? | | ?????????? ???# b ##### # ##?? | | ????????? ???# + T#?? | | ????????? ????# """ T ### ##?? | | ??????????????# """ ##### ## !#?? | | ??????????????# r% """ @ #???## ###! !#?? | | ??????????????# """ #????# #?#! !#?? | | ??????????????# """ #????# #?#! !#?? | | ??????????????# #????# #?#####?? | | ??????????????# #????# #???????? | | ??????????????? ? #####+###????# T???????? | | ????????????????? ??????????????# #???????? | | ????????????????????????????????""""???????? | | ???????????????????????????????????????????? | | ???????????????????????????????????????????? | | ???????????????????????????????????????????? | | ???????????????????????????????????????????? | | ???????????????????????????????????????????? | | ???????????????????????????????????????????? | | ???????????????????????????????????????????? | | ???????????????????????????????????????????? | | ???????????????????????????????????????????? | | ???????????????????????????????????????????? | | | | | | | | | | | | | | | +----------------------------------------------------+ Best States ------------- Heat Dissipation 38 Energy Generation 14 Energy Capacity 160 Matter Stores 300 Matter Capacity 300 Sight Range 18 Terrain Scan Density 10 Evasion (%) 62 Targeting Accuracy 5 Recoil Reduction 2 Salvage Targeting 2 Item Schematics ----------------- None Robot Schematics ------------------ None Fabricated ------------ Nothing Repaired ---------- Nothing Alien Tech Used ----------------- None Achievements -------------- Cya! Challenges ------------ None Game ------ Seed CloakingReflexRedirector Manual? 0 Play Time 00:10:35 Cumulative 118.7 hours Start 2025.09.01 @ 10:27:23 End 2025.09.01 @ 10:49:26 Sessions 1 Manual Loads 0 Difficulty Rogue Special Mode None Game No. 431 Rogue 431 Adventurer 0 Explorer 0 Win Type - Total 0 Types 0/0/0/0/0/0/0/0/0/0 Lore% 46 Gallery% 44 Achievement% 32 Wizard Run 0 Options --------- Layout 2 ASCII 0 Keyboard 0 Movement Mouse Keybinds 0 Fullscreen 2 Font 24/Smallcaps Map View 50x44 Zoom Use 0% Tactical HUD 0 Map Filters NONE Filters NONE Steam 1 RUN: fa68b7ca-d861-4a3e-aaa4-05e0bbc10163